[Event "Titled Tuesday Blitz October 31 Late 2023"]
[White "Mmukka"]
[Black "Djordjevic, Vuk"]
[BlackFideId "902098"]
[WhiteElo "2469"]
[BlackElo "2752"]
[Result "1-0"]
[Round "8"]
[TimeControl "180+1"]
[Date "2023.10.31"]
[WhiteClock "0:00:14"]
[BlackClock "0:00:00"]
[Board "59"]

1. e4 {[%clk 0:02:58]}  e6 {[%clk 0:02:59]} 2. d4 {[%clk 0:02:58]}  d5 {[%clk 0:03:00]} 3. Nc3 {[%clk 0:02:58]}  Bb4 {[%clk 0:03:01]} 4. Ne2 {[%clk 0:02:58]}  dxe4 {[%clk 0:03:00]} 5. a3 {[%clk 0:02:58]}  Bxc3+ {[%clk 0:02:59]} 6. Nxc3 {[%clk 0:02:58]}  Nc6 {[%clk 0:03:00]} 7. Bb5 {[%clk 0:02:58]}  Ne7 {[%clk 0:02:56]} 8. Bg5 {[%clk 0:02:59]}  f6 {[%clk 0:02:56]} 9. Be3 {[%clk 0:02:58]}  f5 {[%clk 0:02:56]} 10. Qd2 {[%clk 0:02:50]}  O-O {[%clk 0:02:55]} 11. O-O-O {[%clk 0:02:47]}  a6 {[%clk 0:02:55]} 12. Bxc6 {[%clk 0:02:44]}  Nxc6 {[%clk 0:02:55]} 13. f3 {[%clk 0:02:43]}  exf3 {[%clk 0:02:53]} 14. gxf3 {[%clk 0:02:44]}  Ne7 {[%clk 0:02:49]} 15. Bg5 {[%clk 0:02:26]}  Qe8 {[%clk 0:02:46]} 16. Rhg1 {[%clk 0:02:22]}  Rf7 {[%clk 0:02:29]} 17. Rde1 {[%clk 0:02:20]}  c6 {[%clk 0:02:26]} 18. Na4 {[%clk 0:02:12]}  Kh8 {[%clk 0:02:11]} 19. Nb6 {[%clk 0:02:10]}  Ra7 {[%clk 0:02:02]} 20. Nc4 {[%clk 0:02:08]}  Rf8 {[%clk 0:01:58]} 21. Qf4 {[%clk 0:01:45]}  Ng6 {[%clk 0:01:43]} 22. Qb8 {[%clk 0:01:43]}  b5 {[%clk 0:01:37]} 23. Qxa7 {[%clk 0:01:38]}  bxc4 {[%clk 0:01:37]} 24. h4 {[%clk 0:01:36]}  h6 {[%clk 0:01:27]} 25. Bd2 {[%clk 0:01:20]}  Rf7 {[%clk 0:01:26]} 26. Qc5 {[%clk 0:01:18]}  Nxh4 {[%clk 0:01:23]} 27. Rg3 {[%clk 0:01:06]}  Kh7 {[%clk 0:01:03]} 28. Reg1 {[%clk 0:00:49]}  Qd8 {[%clk 0:00:48]} 29. Qe5 {[%clk 0:00:41]}  Qf8 {[%clk 0:00:28]} 30. Qf4 {[%clk 0:00:35]}  g5 {[%clk 0:00:15]} 31. Qe5 {[%clk 0:00:27]}  Ng6 {[%clk 0:00:05]} 32. Qe2 {[%clk 0:00:25]}  f4 {[%clk 0:00:05]} 33. Rh3 {[%clk 0:00:24]}  e5 {[%clk 0:00:05]} 34. Rhh1 {[%clk 0:00:21]}  g4 {[%clk 0:00:03]} 35. fxg4 {[%clk 0:00:20]}  f3 {[%clk 0:00:01]} 36. Qf2 {[%clk 0:00:20]}  Nf4 {[%clk 0:00:01]} 37. dxe5 {[%clk 0:00:19]}  Ne2+ {[%clk 0:00:01]} 38. Kb1 {[%clk 0:00:19]}  Kg8 {[%clk 0:00:02]} 39. Re1 {[%clk 0:00:14]}  Bxg4 {[%clk 0:00:01]} 40. Bxh6 {[%clk 0:00:14]}  Rf6 {[%clk 0:00:00]} 41. exf6 {[%clk 0:00:14]} 1-0


[Site "https://www.chess.com"]

[Event "Titled Tuesday Blitz October 31 Late 2023"]
[White "Mazurkiewicz, Michal"]
[Black "Djokic, Mihailo"]
[WhiteFideId "1124943"]
[BlackFideId "976440"]
[WhiteElo "2451"]
[BlackElo "2717"]
[Result "1/2-1/2"]
[Round "8"]
[TimeControl "180+1"]
[Date "2023.10.31"]
[WhiteClock "0:00:07"]
[BlackClock "0:00:58"]
[Board "60"]

1. e4 {[%clk 0:02:59]}  c5 {[%clk 0:02:55]} 2. Nf3 {[%clk 0:03:00]}  d6 {[%clk 0:02:53]} 3. g3 {[%clk 0:03:00]}  Nc6 {[%clk 0:02:42]} 4. Bg2 {[%clk 0:03:00]}  g6 {[%clk 0:02:41]} 5. O-O {[%clk 0:03:00]}  Bg7 {[%clk 0:02:42]} 6. d3 {[%clk 0:03:00]}  Nf6 {[%clk 0:02:43]} 7. Re1 {[%clk 0:03:00]}  O-O {[%clk 0:02:43]} 8. e5 {[%clk 0:03:01]}  dxe5 {[%clk 0:02:43]} 9. Nxe5 {[%clk 0:03:02]}  Nd4 {[%clk 0:02:43]} 10. c3 {[%clk 0:02:51]}  Ne6 {[%clk 0:02:41]} 11. Nd2 {[%clk 0:02:47]}  Qb6 {[%clk 0:02:40]} 12. Ndc4 {[%clk 0:02:47]}  Qa6 {[%clk 0:02:41]} 13. a4 {[%clk 0:02:29]}  Rd8 {[%clk 0:02:40]} 14. b4 {[%clk 0:01:49]}  cxb4 {[%clk 0:02:38]} 15. cxb4 {[%clk 0:01:50]}  Nd4 {[%clk 0:02:21]} 16. b5 {[%clk 0:01:49]}  Nxb5 {[%clk 0:02:21]} 17. axb5 {[%clk 0:01:41]}  Qxa1 {[%clk 0:02:20]} 18. Qb3 {[%clk 0:01:39]}  Be6 {[%clk 0:02:16]} 19. Bd2 {[%clk 0:01:37]}  Qd4 {[%clk 0:02:14]} 20. Bxb7 {[%clk 0:00:54]}  Rab8 {[%clk 0:02:13]} 21. Bc6 {[%clk 0:00:08]}  Qc5 {[%clk 0:02:09]} 22. Be3 {[%clk 0:00:08]}  Qxe5 {[%clk 0:02:05]} 23. Nxe5 {[%clk 0:00:06]}  Bxb3 {[%clk 0:02:06]} 24. Bxa7 {[%clk 0:00:06]}  Rbc8 {[%clk 0:02:00]} 25. b6 {[%clk 0:00:07]}  Bd5 {[%clk 0:01:57]} 26. b7 {[%clk 0:00:03]}  Rxc6 {[%clk 0:01:55]} 27. Nxc6 {[%clk 0:00:04]}  Bxc6 {[%clk 0:01:56]} 28. b8=Q {[%clk 0:00:04]}  Rxb8 {[%clk 0:01:56]} 29. Bxb8 {[%clk 0:00:05]}  Nd5 {[%clk 0:01:55]} 30. Be5 {[%clk 0:00:05]}  f6 {[%clk 0:01:55]} 31. Bd4 {[%clk 0:00:06]}  Kf7 {[%clk 0:01:55]} 32. Bc5 {[%clk 0:00:06]}  e5 {[%clk 0:01:55]} 33. d4 {[%clk 0:00:06]}  Nb4 {[%clk 0:01:53]} 34. Rb1 {[%clk 0:00:06]}  Nd3 {[%clk 0:01:53]} 35. Rb6 {[%clk 0:00:06]}  Be4 {[%clk 0:01:51]} 36. Ra6 {[%clk 0:00:04]}  Nxc5 {[%clk 0:01:40]} 37. dxc5 {[%clk 0:00:05]}  Bf8 {[%clk 0:01:38]} 38. c6 {[%clk 0:00:05]}  Bd6 {[%clk 0:01:34]} 39. c7 {[%clk 0:00:05]}  Bxc7 {[%clk 0:01:27]} 40. Ra7 {[%clk 0:00:06]}  h5 {[%clk 0:01:25]} 41. Rxc7+ {[%clk 0:00:07]}  Ke6 {[%clk 0:01:26]} 42. Ra7 {[%clk 0:00:07]}  Kf5 {[%clk 0:01:26]} 43. Ra3 {[%clk 0:00:07]}  Bd5 {[%clk 0:01:26]} 44. f3 {[%clk 0:00:07]}  g5 {[%clk 0:01:26]} 45. Kf2 {[%clk 0:00:07]}  Bc6 {[%clk 0:01:25]} 46. h3 {[%clk 0:00:07]}  Bd7 {[%clk 0:01:23]} 47. Ra6 {[%clk 0:00:06]}  Kg6 {[%clk 0:01:22]} 48. g4 {[%clk 0:00:06]}  h4 {[%clk 0:01:20]} 49. Rd6 {[%clk 0:00:06]}  Bb5 {[%clk 0:01:20]} 50. Ke3 {[%clk 0:00:07]}  Ba4 {[%clk 0:01:19]} 51. Rd2 {[%clk 0:00:06]}  Kf7 {[%clk 0:01:19]} 52. Ra2 {[%clk 0:00:05]}  Bb3 {[%clk 0:01:19]} 53. Ra3 {[%clk 0:00:06]}  Bc4 {[%clk 0:01:19]} 54. Ra5 {[%clk 0:00:05]}  Bf1 {[%clk 0:01:19]} 55. Ke4 {[%clk 0:00:04]}  Kg6 {[%clk 0:01:17]} 56. Ra8 {[%clk 0:00:03]}  Bxh3 {[%clk 0:01:17]} 57. Rg8+ {[%clk 0:00:03]}  Kf7 {[%clk 0:01:17]} 58. Rh8 {[%clk 0:00:03]}  Bf1 {[%clk 0:01:18]} 59. Rh7+ {[%clk 0:00:02]}  Ke6 {[%clk 0:01:17]} 60. Rh6 {[%clk 0:00:02]}  Bb5 {[%clk 0:01:17]} 61. Ke3 {[%clk 0:00:02]}  Bc6 {[%clk 0:01:17]} 62. Kf2 {[%clk 0:00:02]}  Kf7 {[%clk 0:01:17]} 63. Rh8 {[%clk 0:00:01]}  Kg7 {[%clk 0:01:17]} 64. Rb8 {[%clk 0:00:02]}  Bd5 {[%clk 0:01:17]} 65. Rc8 {[%clk 0:00:02]}  Kg6 {[%clk 0:01:17]} 66. Rc7 {[%clk 0:00:03]}  Bf7 {[%clk 0:01:15]} 67. Rb7 {[%clk 0:00:03]}  Be6 {[%clk 0:01:15]} 68. Rc7 {[%clk 0:00:03]}  Bd5 {[%clk 0:01:15]} 69. Rc5 {[%clk 0:00:04]}  Ba8 {[%clk 0:01:14]} 70. Ra5 {[%clk 0:00:04]}  Bb7 {[%clk 0:01:13]} 71. Rb5 {[%clk 0:00:04]}  Bc6 {[%clk 0:01:13]} 72. Rc5 {[%clk 0:00:05]}  Ba4 {[%clk 0:01:14]} 73. Kg2 {[%clk 0:00:05]}  Bd1 {[%clk 0:01:13]} 74. Rc1 {[%clk 0:00:05]}  Be2 {[%clk 0:01:13]} 75. Rc2 {[%clk 0:00:05]}  Bd3 {[%clk 0:01:13]} 76. Rc3 {[%clk 0:00:05]}  e4 {[%clk 0:01:13]} 77. fxe4 {[%clk 0:00:05]}  Bxe4+ {[%clk 0:01:14]} 78. Kh3 {[%clk 0:00:06]}  Kf7 {[%clk 0:01:14]} 79. Re3 {[%clk 0:00:06]}  Bd5 {[%clk 0:01:13]} 80. Rd3 {[%clk 0:00:06]}  Ke6 {[%clk 0:01:13]} 81. Re3+ {[%clk 0:00:06]}  Kd6 {[%clk 0:01:13]} 82. Rd3 {[%clk 0:00:06]}  Ke5 {[%clk 0:01:14]} 83. Rd1 {[%clk 0:00:05]}  Be4 {[%clk 0:01:10]} 84. Rf1 {[%clk 0:00:05]}  Bd5 {[%clk 0:01:06]} 85. Rf5+ {[%clk 0:00:05]}  Ke6 {[%clk 0:01:07]} 86. Rf2 {[%clk 0:00:05]}  Bc4 {[%clk 0:01:07]} 87. Rf3 {[%clk 0:00:04]}  Ke5 {[%clk 0:01:06]} 88. Rf5+ {[%clk 0:00:04]}  Ke6 {[%clk 0:01:07]} 89. Rf2 {[%clk 0:00:03]}  Ba6 {[%clk 0:01:08]} 90. Rf3 {[%clk 0:00:03]}  Bb5 {[%clk 0:01:07]} 91. Rf2 {[%clk 0:00:03]}  Kf7 {[%clk 0:01:07]} 92. Rf3 {[%clk 0:00:04]}  Kg6 {[%clk 0:01:08]} 93. Rf2 {[%clk 0:00:04]}  Bc6 {[%clk 0:01:09]} 94. Rf1 {[%clk 0:00:04]}  Bd7 {[%clk 0:01:09]} 95. Rf2 {[%clk 0:00:04]}  Be6 {[%clk 0:01:09]} 96. Rf1 {[%clk 0:00:05]}  Bd5 {[%clk 0:01:10]} 97. Rf2 {[%clk 0:00:05]}  Be4 {[%clk 0:01:10]} 98. Re2 {[%clk 0:00:05]}  Bd3 {[%clk 0:01:09]} 99. Rf2 {[%clk 0:00:05]}  Be4 {[%clk 0:01:09]} 100. Re2 {[%clk 0:00:06]}  f5 {[%clk 0:01:09]} 101. gxf5+ {[%clk 0:00:06]}  Bxf5+ {[%clk 0:01:10]} 102. Kh2 {[%clk 0:00:06]}  g4 {[%clk 0:01:09]} 103. Ra2 {[%clk 0:00:06]}  Kg5 {[%clk 0:01:09]} 104. Ra4 {[%clk 0:00:06]}  Bg6 {[%clk 0:01:07]} 105. Rb4 {[%clk 0:00:06]}  Bf5 {[%clk 0:01:05]} 106. Ra4 {[%clk 0:00:06]}  Be6 {[%clk 0:01:06]} 107. Rb4 {[%clk 0:00:06]}  g3+ {[%clk 0:01:04]} 108. Kg2 {[%clk 0:00:07]}  Bd5+ {[%clk 0:01:04]} 109. Kh3 {[%clk 0:00:06]}  Be6+ {[%clk 0:01:00]} 110. Kg2 {[%clk 0:00:06]}  Bf5 {[%clk 0:01:01]} 111. Ra4 {[%clk 0:00:06]}  Bc2 {[%clk 0:00:59]} 112. Rb4 {[%clk 0:00:06]}  Bd3 {[%clk 0:00:59]} 113. Ra4 {[%clk 0:00:06]}  Bb1 {[%clk 0:00:57]} 114. Rb4 {[%clk 0:00:07]}  Bg6 {[%clk 0:00:57]} 115. Kh3 {[%clk 0:00:07]}  Bf5+ {[%clk 0:00:57]} 116. Kg2 {[%clk 0:00:07]}  Bd7 {[%clk 0:00:58]} 117. Rc4 {[%clk 0:00:07]}  Be6 {[%clk 0:00:58]} 118. Rb4 {[%clk 0:00:07]} 1/2-1/2


[Site "https://www.chess.com"]

[Event "Titled Tuesday Blitz October 31 Late 2023"]
[White "Zeynalli, Rashad"]
[Black "Figorito, Nick"]
[WhiteFideId "13403320"]
[BlackFideId "30923689"]
[WhiteElo "2622"]
[BlackElo "2445"]
[Result "1-0"]
[Round "8"]
[TimeControl "180+1"]
[Date "2023.10.31"]
[WhiteClock "0:00:09"]
[BlackClock "0:00:14"]
[Board "62"]

1. e4 {[%clk 0:03:00]}  e6 {[%clk 0:03:00]} 2. d4 {[%clk 0:02:59]}  d5 {[%clk 0:03:01]} 3. Nc3 {[%clk 0:02:59]}  Bb4 {[%clk 0:03:00]} 4. e5 {[%clk 0:02:58]}  c5 {[%clk 0:03:00]} 5. a3 {[%clk 0:02:58]}  Bxc3+ {[%clk 0:03:01]} 6. bxc3 {[%clk 0:02:59]}  Ne7 {[%clk 0:03:02]} 7. h4 {[%clk 0:02:59]}  Qa5 {[%clk 0:03:02]} 8. Bd2 {[%clk 0:02:58]}  Qa4 {[%clk 0:03:02]} 9. Nf3 {[%clk 0:02:54]}  b6 {[%clk 0:03:02]} 10. h5 {[%clk 0:02:49]}  h6 {[%clk 0:03:02]} 11. Rh4 {[%clk 0:02:47]}  Nf5 {[%clk 0:03:00]} 12. Rf4 {[%clk 0:02:44]}  c4 {[%clk 0:02:40]} 13. g4 {[%clk 0:02:42]}  Ne7 {[%clk 0:02:40]} 14. g5 {[%clk 0:02:40]}  Nf5 {[%clk 0:02:38]} 15. Bh3 {[%clk 0:02:37]}  Nc6 {[%clk 0:02:17]} 16. Bxf5 {[%clk 0:02:22]}  exf5 {[%clk 0:02:18]} 17. gxh6 {[%clk 0:02:21]}  Rxh6 {[%clk 0:02:17]} 18. Nh4 {[%clk 0:02:17]}  Ne7 {[%clk 0:02:14]} 19. Ra2 {[%clk 0:02:04]}  Be6 {[%clk 0:02:09]} 20. Ng2 {[%clk 0:01:40]}  O-O-O {[%clk 0:02:02]} 21. Rh4 {[%clk 0:01:41]}  Rh7 {[%clk 0:01:57]} 22. Bg5 {[%clk 0:01:40]}  Qd7 {[%clk 0:01:55]} 23. Nf4 {[%clk 0:01:37]}  Rdh8 {[%clk 0:01:52]} 24. Bxe7 {[%clk 0:01:34]}  Qxe7 {[%clk 0:01:51]} 25. Rh3 {[%clk 0:01:28]}  Qg5 {[%clk 0:01:51]} 26. Qf3 {[%clk 0:01:28]}  Qg1+ {[%clk 0:01:48]} 27. Kd2 {[%clk 0:01:19]}  Qb1 {[%clk 0:01:48]} 28. Nxd5 {[%clk 0:01:11]}  Bxd5 {[%clk 0:01:22]} 29. Qxd5 {[%clk 0:01:10]}  Qxa2 {[%clk 0:01:23]} 30. Qxf7 {[%clk 0:01:03]}  Qxa3 {[%clk 0:01:17]} 31. d5 {[%clk 0:00:48]}  Qc5 {[%clk 0:01:16]} 32. d6 {[%clk 0:00:36]}  Kb8 {[%clk 0:00:42]} 33. Rf3 {[%clk 0:00:17]}  Rxh5 {[%clk 0:00:33]} 34. Qxg7 {[%clk 0:00:15]}  Qd5+ {[%clk 0:00:28]} 35. Ke2 {[%clk 0:00:12]}  Qe4+ {[%clk 0:00:26]} 36. Re3 {[%clk 0:00:12]}  Qxc2+ {[%clk 0:00:22]} 37. Kf3 {[%clk 0:00:12]}  Rh3+ {[%clk 0:00:19]} 38. Kf4 {[%clk 0:00:10]}  R8h4+ {[%clk 0:00:17]} 39. Kg5 {[%clk 0:00:09]}  Rg4+ {[%clk 0:00:16]} 40. Kf6 {[%clk 0:00:08]}  Rxg7 {[%clk 0:00:15]} 41. Rxh3 {[%clk 0:00:09]}  Rg8 {[%clk 0:00:11]} 42. Kf7 {[%clk 0:00:08]}  Rc8 {[%clk 0:00:08]} 43. d7 {[%clk 0:00:08]}  Rc7 {[%clk 0:00:08]} 44. Rh8+ {[%clk 0:00:07]}  Kb7 {[%clk 0:00:08]} 45. e6 {[%clk 0:00:08]}  Qe4 {[%clk 0:00:07]} 46. Kf6 {[%clk 0:00:08]}  Rc6 {[%clk 0:00:02]} 47. Re8 {[%clk 0:00:08]}  Rd6 {[%clk 0:00:01]} 48. d8=Q {[%clk 0:00:06]}  Rxd8 {[%clk 0:00:02]} 49. Rxd8 {[%clk 0:00:07]}  Qf4 {[%clk 0:00:02]} 50. e7 {[%clk 0:00:07]}  Qf3 {[%clk 0:00:02]} 51. e8=Q {[%clk 0:00:07]}  Qxc3+ {[%clk 0:00:03]} 52. Kf7 {[%clk 0:00:05]}  Qc2 {[%clk 0:00:04]} 53. Qe7+ {[%clk 0:00:05]}  Ka6 {[%clk 0:00:05]} 54. Qe6 {[%clk 0:00:06]}  Kb5 {[%clk 0:00:05]} 55. Qd5+ {[%clk 0:00:06]}  Kb4 {[%clk 0:00:06]} 56. Qd6+ {[%clk 0:00:05]}  Kb3 {[%clk 0:00:06]} 57. Re8 {[%clk 0:00:05]}  c3 {[%clk 0:00:06]} 58. f4 {[%clk 0:00:05]}  Qd2 {[%clk 0:00:06]} 59. Qe6+ {[%clk 0:00:05]}  Kb2 {[%clk 0:00:06]} 60. Qe5 {[%clk 0:00:04]}  Kc2 {[%clk 0:00:06]} 61. Qxf5+ {[%clk 0:00:04]}  Kb2 {[%clk 0:00:06]} 62. Qe5 {[%clk 0:00:04]}  Kb1 {[%clk 0:00:06]} 63. Qe1+ {[%clk 0:00:03]}  Qxe1 {[%clk 0:00:07]} 64. Rxe1+ {[%clk 0:00:04]}  Kb2 {[%clk 0:00:07]} 65. f5 {[%clk 0:00:04]}  c2 {[%clk 0:00:08]} 66. f6 {[%clk 0:00:05]}  c1=Q {[%clk 0:00:09]} 67. Rxc1 {[%clk 0:00:05]}  Kxc1 {[%clk 0:00:10]} 68. Ke6 {[%clk 0:00:06]}  b5 {[%clk 0:00:11]} 69. f7 {[%clk 0:00:06]}  b4 {[%clk 0:00:11]} 70. f8=Q {[%clk 0:00:07]}  b3 {[%clk 0:00:12]} 71. Qa3+ {[%clk 0:00:07]}  Kc2 {[%clk 0:00:13]} 72. Kd5 {[%clk 0:00:07]}  b2 {[%clk 0:00:14]} 73. Qa2 {[%clk 0:00:07]}  Kc1 {[%clk 0:00:14]} 74. Qc4+ {[%clk 0:00:07]}  Kd1 {[%clk 0:00:14]} 75. Qb3+ {[%clk 0:00:08]}  Kc1 {[%clk 0:00:15]} 76. Qc3+ {[%clk 0:00:08]}  Kb1 {[%clk 0:00:13]} 77. Kc4 {[%clk 0:00:09]}  Ka2 {[%clk 0:00:14]} 78. Qc2 {[%clk 0:00:09]}  Ka3 {[%clk 0:00:14]} 79. Qb3# {[%clk 0:00:09]} 1-0


[Site "https://www.chess.com"]

[Event "Titled Tuesday Blitz October 31 Late 2023"]
[White "Makaraci, Tunahan"]
[Black "balachess2006"]
[WhiteFideId "6356559"]
[WhiteElo "2445"]
[BlackElo "2579"]
[Result "1-0"]
[Round "8"]
[TimeControl "180+1"]
[Date "2023.10.31"]
[WhiteClock "0:01:06"]
[BlackClock "0:02:03"]
[Board "64"]

1. e4 {[%clk 0:03:00]}  c5 {[%clk 0:02:59]} 2. c3 {[%clk 0:03:00]}  Nf6 {[%clk 0:02:59]} 3. e5 {[%clk 0:03:00]}  Nd5 {[%clk 0:03:00]} 4. Nf3 {[%clk 0:03:01]}  Nc6 {[%clk 0:03:00]} 5. Bc4 {[%clk 0:03:00]}  Nb6 {[%clk 0:03:00]} 6. Bb3 {[%clk 0:03:01]}  d5 {[%clk 0:03:01]} 7. exd6 {[%clk 0:03:01]}  Qxd6 {[%clk 0:03:01]} 8. O-O {[%clk 0:03:01]}  Bf5 {[%clk 0:02:58]} 9. d4 {[%clk 0:03:01]}  cxd4 {[%clk 0:02:57]} 10. Nxd4 {[%clk 0:03:01]}  Nxd4 {[%clk 0:02:56]} 11. cxd4 {[%clk 0:03:01]}  e6 {[%clk 0:02:57]} 12. Nc3 {[%clk 0:03:01]}  Be7 {[%clk 0:02:56]} 13. a4 {[%clk 0:03:00]}  O-O {[%clk 0:02:54]} 14. a5 {[%clk 0:02:56]}  Nd5 {[%clk 0:02:54]} 15. Bxd5 {[%clk 0:02:47]}  exd5 {[%clk 0:02:55]} 16. Qf3 {[%clk 0:02:44]}  Be6 {[%clk 0:02:54]} 17. Re1 {[%clk 0:02:39]}  Bf6 {[%clk 0:02:51]} 18. Be3 {[%clk 0:02:34]}  Rfd8 {[%clk 0:02:48]} 19. Na4 {[%clk 0:02:30]}  b6 {[%clk 0:02:46]} 20. Bf4 {[%clk 0:02:19]}  Qb4 {[%clk 0:02:44]} 21. Be5 {[%clk 0:02:18]}  Bxe5 {[%clk 0:02:39]} 22. dxe5 {[%clk 0:02:19]}  d4 {[%clk 0:02:38]} 23. Qa3 {[%clk 0:02:02]}  Qxa5 {[%clk 0:02:35]} 24. b4 {[%clk 0:01:59]}  Qb5 {[%clk 0:02:35]} 25. Rad1 {[%clk 0:01:57]}  a5 {[%clk 0:02:34]} 26. Nb2 {[%clk 0:01:42]}  Qxb4 {[%clk 0:02:30]} 27. Qxb4 {[%clk 0:01:39]}  axb4 {[%clk 0:02:31]} 28. Nd3 {[%clk 0:01:37]}  b3 {[%clk 0:02:31]} 29. Nf4 {[%clk 0:01:36]}  b2 {[%clk 0:02:28]} 30. Nxe6 {[%clk 0:01:31]}  fxe6 {[%clk 0:02:29]} 31. Rb1 {[%clk 0:01:32]}  Ra2 {[%clk 0:02:29]} 32. Kf1 {[%clk 0:01:30]}  d3 {[%clk 0:02:30]} 33. Red1 {[%clk 0:01:29]}  Kf7 {[%clk 0:02:29]} 34. Rd2 {[%clk 0:01:29]}  Kg6 {[%clk 0:02:27]} 35. Ke1 {[%clk 0:01:29]}  Kf5 {[%clk 0:02:27]} 36. Rdxb2 {[%clk 0:01:29]}  Rxb2 {[%clk 0:02:28]} 37. Rxb2 {[%clk 0:01:29]}  d2+ {[%clk 0:02:28]} 38. Kd1 {[%clk 0:01:30]}  Kxe5 {[%clk 0:02:28]} 39. Rxb6 {[%clk 0:01:29]}  Kf6 {[%clk 0:02:27]} 40. g3 {[%clk 0:01:27]}  g5 {[%clk 0:02:26]} 41. Rb2 {[%clk 0:01:27]}  Kf5 {[%clk 0:02:25]} 42. f3 {[%clk 0:01:27]}  g4 {[%clk 0:02:05]} 43. Rb5+ {[%clk 0:01:24]}  Rd5 {[%clk 0:02:05]} 44. Rxd5+ {[%clk 0:01:06]}  exd5 {[%clk 0:02:03]} 45. f4 {[%clk 0:01:06]} 1-0


[Site "https://www.chess.com"]

[Event "Titled Tuesday Blitz October 31 Late 2023"]
[White "Belenkaya, Dina"]
[Black "Hajiyev, Kanan"]
[WhiteFideId "24142654"]
[BlackFideId "13404148"]
[WhiteElo "2443"]
[BlackElo "2566"]
[Result "1-0"]
[Round "8"]
[TimeControl "180+1"]
[Date "2023.10.31"]
[WhiteClock "0:00:47"]
[BlackClock "0:00:00"]
[Board "65"]

1. g3 {[%clk 0:02:58]}  d5 {[%clk 0:02:54]} 2. Bg2 {[%clk 0:02:57]}  Nf6 {[%clk 0:02:55]} 3. Nf3 {[%clk 0:02:53]}  g6 {[%clk 0:02:53]} 4. d3 {[%clk 0:02:47]}  Bg7 {[%clk 0:02:51]} 5. Nbd2 {[%clk 0:02:47]}  O-O {[%clk 0:02:51]} 6. O-O {[%clk 0:02:47]}  b6 {[%clk 0:02:52]} 7. e4 {[%clk 0:02:45]}  Bb7 {[%clk 0:02:52]} 8. e5 {[%clk 0:02:45]}  Nfd7 {[%clk 0:02:52]} 9. Qe2 {[%clk 0:02:43]}  c5 {[%clk 0:02:51]} 10. e6 {[%clk 0:02:34]}  fxe6 {[%clk 0:02:40]} 11. Ng5 {[%clk 0:02:28]}  e5 {[%clk 0:02:29]} 12. Ne6 {[%clk 0:02:28]}  Qc8 {[%clk 0:02:25]} 13. Nxf8 {[%clk 0:02:04]}  Qxf8 {[%clk 0:02:25]} 14. Nf3 {[%clk 0:01:58]}  Nc6 {[%clk 0:02:19]} 15. Ng5 {[%clk 0:01:57]}  Nd8 {[%clk 0:02:14]} 16. c4 {[%clk 0:01:56]}  h6 {[%clk 0:02:07]} 17. Nh3 {[%clk 0:01:56]}  e6 {[%clk 0:02:05]} 18. f4 {[%clk 0:01:47]}  Qe7 {[%clk 0:01:39]} 19. Bd2 {[%clk 0:01:43]}  Nc6 {[%clk 0:01:32]} 20. cxd5 {[%clk 0:01:42]}  Nd4 {[%clk 0:01:33]} 21. Qe4 {[%clk 0:01:30]}  Kh7 {[%clk 0:00:46]} 22. d6 {[%clk 0:01:27]}  Bxe4 {[%clk 0:00:45]} 23. dxe7 {[%clk 0:01:27]}  Bxg2 {[%clk 0:00:46]} 24. Kxg2 {[%clk 0:01:26]}  Re8 {[%clk 0:00:41]} 25. Bc3 {[%clk 0:01:20]}  Nc2 {[%clk 0:00:35]} 26. Rae1 {[%clk 0:01:02]}  Nxe1+ {[%clk 0:00:35]} 27. Rxe1 {[%clk 0:01:03]}  exf4 {[%clk 0:00:27]} 28. Nxf4 {[%clk 0:00:58]}  Rxe7 {[%clk 0:00:17]} 29. Nxe6 {[%clk 0:00:52]}  Bf6 {[%clk 0:00:07]} 30. Bxf6 {[%clk 0:00:50]}  Nxf6 {[%clk 0:00:06]} 31. Nf8+ {[%clk 0:00:46]}  Kg7 {[%clk 0:00:07]} 32. Rxe7+ {[%clk 0:00:47]}  Kxf8 {[%clk 0:00:00]} 33. Rxa7 {[%clk 0:00:47]} 1-0


[Site "https://www.chess.com"]

[Event "Titled Tuesday Blitz October 31 Late 2023"]
[White "Kawuma, Patrick"]
[Black "Sargsyan, Anna M."]
[WhiteFideId "10000127"]
[BlackFideId "13308130"]
[WhiteElo "2424"]
[BlackElo "2542"]
[Result "0-1"]
[Round "8"]
[TimeControl "180+1"]
[Date "2023.10.31"]
[WhiteClock "0:00:04"]
[BlackClock "0:00:06"]
[Board "67"]

1. Nf3 {[%clk 0:02:59]}  d5 {[%clk 0:01:40]} 2. g3 {[%clk 0:02:58]}  Nf6 {[%clk 0:01:40]} 3. Bg2 {[%clk 0:02:58]}  g6 {[%clk 0:01:41]} 4. c4 {[%clk 0:02:57]}  c6 {[%clk 0:01:40]} 5. O-O {[%clk 0:02:55]}  Bg7 {[%clk 0:01:41]} 6. Qc2 {[%clk 0:02:54]}  O-O {[%clk 0:01:41]} 7. d3 {[%clk 0:02:54]}  Re8 {[%clk 0:01:39]} 8. Bf4 {[%clk 0:02:51]}  Nbd7 {[%clk 0:01:37]} 9. cxd5 {[%clk 0:02:50]}  Nxd5 {[%clk 0:01:37]} 10. Bg5 {[%clk 0:02:45]}  h6 {[%clk 0:01:37]} 11. Bd2 {[%clk 0:02:45]}  e5 {[%clk 0:01:37]} 12. Nc3 {[%clk 0:02:41]}  N7f6 {[%clk 0:01:33]} 13. Rab1 {[%clk 0:02:29]}  Kh7 {[%clk 0:01:23]} 14. b4 {[%clk 0:02:17]}  Nxc3 {[%clk 0:01:19]} 15. Bxc3 {[%clk 0:02:16]}  Nd5 {[%clk 0:01:19]} 16. Bd2 {[%clk 0:02:15]}  Be6 {[%clk 0:01:18]} 17. a4 {[%clk 0:02:14]}  Rc8 {[%clk 0:01:18]} 18. Rfd1 {[%clk 0:02:05]}  a6 {[%clk 0:01:16]} 19. e4 {[%clk 0:02:00]}  Nc7 {[%clk 0:01:09]} 20. h3 {[%clk 0:01:49]}  Qd7 {[%clk 0:01:08]} 21. Kh2 {[%clk 0:01:48]}  Red8 {[%clk 0:01:06]} 22. Bc3 {[%clk 0:01:46]}  f6 {[%clk 0:01:02]} 23. d4 {[%clk 0:01:46]}  exd4 {[%clk 0:00:31]} 24. Nxd4 {[%clk 0:01:31]}  Qe7 {[%clk 0:00:29]} 25. f4 {[%clk 0:01:21]}  Bf7 {[%clk 0:00:28]} 26. Re1 {[%clk 0:01:18]}  Ne6 {[%clk 0:00:28]} 27. Nf3 {[%clk 0:01:06]}  c5 {[%clk 0:00:26]} 28. b5 {[%clk 0:01:05]}  Nd4 {[%clk 0:00:25]} 29. Qf2 {[%clk 0:01:01]}  axb5 {[%clk 0:00:25]} 30. axb5 {[%clk 0:01:00]}  Nxf3+ {[%clk 0:00:23]} 31. Qxf3 {[%clk 0:00:55]}  c4 {[%clk 0:00:23]} 32. e5 {[%clk 0:00:54]}  f5 {[%clk 0:00:20]} 33. Bf1 {[%clk 0:00:48]}  Be6 {[%clk 0:00:19]} 34. Rbd1 {[%clk 0:00:45]}  b6 {[%clk 0:00:18]} 35. Bg2 {[%clk 0:00:42]}  Qc5 {[%clk 0:00:17]} 36. Qb7 {[%clk 0:00:34]}  Rc7 {[%clk 0:00:14]} 37. Qa6 {[%clk 0:00:30]}  Rd3 {[%clk 0:00:12]} 38. Ba1 {[%clk 0:00:22]}  Qf2 {[%clk 0:00:12]} 39. Rxd3 {[%clk 0:00:17]}  cxd3 {[%clk 0:00:13]} 40. Rd1 {[%clk 0:00:17]}  d2 {[%clk 0:00:13]} 41. Qa4 {[%clk 0:00:15]}  Qe3 {[%clk 0:00:11]} 42. Qd4 {[%clk 0:00:14]}  Qb3 {[%clk 0:00:07]} 43. Qxd2 {[%clk 0:00:14]}  Qxb5 {[%clk 0:00:08]} 44. Bf1 {[%clk 0:00:13]}  Bc4 {[%clk 0:00:07]} 45. Bxc4 {[%clk 0:00:11]}  Rxc4 {[%clk 0:00:07]} 46. Qg2 {[%clk 0:00:10]}  Qa4 {[%clk 0:00:07]} 47. Bd4 {[%clk 0:00:08]}  Qxd1 {[%clk 0:00:06]} 48. Bf2 {[%clk 0:00:04]}  Rc2 {[%clk 0:00:06]} 0-1


[Site "https://www.chess.com"]